Cogmind - Beta 13 @@@ ROGUE MODE // 2024.08.02 @ 19:17:18 Player: jagoly Result: Destroyed by L-41 Fighter with Axe Performance ------------- Evolutions (3) 1500 Regions Visited (11) 2200 Robots Destroyed (310) 1550 Value Destroyed (10805) 10805 Prototype IDs (26) 520 Alien Tech Used (0) 0 Bonus (3428) 3428 TOTAL SCORE: 20003 Bonus ------- High Alert Combat Kills 2078 Follower Combat Kills 650 Entered Garrisons 200 Used RIF Installer 500 Cogmind --------- Core Integrity 0/700 Matter 280/300 Energy 37/325 System Corruption 0% Temperature Cool (0) Movement Immobile (Siege) Location -7/Lower Caves Parts ------- > --- POWER (1) -------- Antimatter Reactor > --- PROPULSION (4) --- Heavy Treads Heavy Treads > --- UTILITY (6) ------ Improved Cooling System Huge Storage Unit Advanced Targeting Computer Core Analyzer Improved Medium Armor Plating > --- WEAPON (2) ------- Precision Shock Rifle Precision Shock Rifle > --- INVENTORY (25) --- Heavy Deuterium Engine Heavy Deuterium Engine Heavy Treads Heavy Treads Improved Cooling System Improved Coolant Injector System Shield Relay Coupler [Swarmer] (42) Relay Coupler [Grunt] (31) Relay Coupler [Brawler] (31) Relay Coupler [Sentry] (24) Relay Coupler [Hunter] (17) System Restoration Module Plasma Cannon Plasma Cannon Heavy Phase Cannon KE Penetrator Hypervelocity Gauss Cannon Heavy Missile Launcher Remote Datajack Plasma Cutter Peak State ------------ > --- POWER ------------ Hybrid Deuterium Engine > --- PROPULSION ------- Heavy Treads Heavy Treads > --- UTILITY ---------- Huge Storage Unit Damper Plating Improved Shield Generator > --- WEAPON ----------- Cooled Pulse Rifle Remote Datajack > --- INVENTORY -------- Antimatter Reactor Antimatter Reactor Heavy Treads Heavy Treads Heavy Treads Improved Cooling System Improved Coolant Injector Core Analyzer Medium Reactive Plating Relay Coupler [Swarmer] Relay Coupler [Grunt] Relay Coupler [Brawler] Relay Coupler [Sentry] Relay Coupler [Hunter] Precision Shock Rifle Precision Shock Rifle Heavy Phase Cannon KE Penetrator Hypervelocity Gauss Cannon Heavy Rocket Launcher Plasma Cutter [Rating: 78] Favorites ----------- Power Cooled Ion Engine Engine Cooled Ion Engine Power Core Light Nuclear Core Reactor Antimatter Reactor Propulsion Light Treads Treads Light Treads Leg Aluminum Leg Wheel Armored Wheel Hover Unit Cooled Aerolev Unit Utility Advanced Targeting Computer Device Improved Shield Generator Storage Huge Storage Unit Processor Advanced Targeting Computer Hackware Hacking Suite Protection Medium Reactive Plating Weapon Gatling Laser Energy Gun Gatling Laser Energy Cannon Plasma Cannon Ballistic Gun Improved Assault Rifle Ballistic Cannon Mass Driver Special Weapon Remote Datajack Impact Weapon Heavy Flail Slashing Weapon Chainsword Piercing Weapon Lance Special Melee Weapon Datajack Build | -11 -10 -10 -9 -9 -8 -8 -8 -7 -7 -7 -7 ------- Run | Yrd Mat Min Mat Sto Mat Gar Mat Fac Was Fac Low Slots Evolved 6 | . . . 2 . 2 . . 2 . . . Power . | . . . . . . . . . . . . Propulsion 2 | . . . 1 . 1 . . . . . . Utility 4 | . . . 1 . 1 . . 2 . . . Weapon . | . . . . . . . . . . . . Parts Attached 372 | 5 13 4 41 25 53 48 16 75 25 66 1 Power 26 | 1 1 1 6 . 3 1 . 6 . 7 . Engine 19 | 1 1 1 6 . 3 1 . 5 . 1 . Core 2 | . . . . . . . . 1 . 1 . Reactor 5 | . . . . . . . . . . 5 . Propulsion 95 | 2 2 . 13 8 25 10 5 21 5 3 1 Treads 80 | . 2 . 13 7 23 10 5 11 5 3 1 Leg 8 | 2 . . . . . . . 6 . . . Wheel 6 | . . . . . 2 . . 4 . . . Hover 1 | . . . . 1 . . . . . . . Flight . | . . . . . . . . . . . . Utility 106 | 1 4 3 5 4 13 4 4 24 10 34 . Device 49 | . 2 3 2 3 6 3 1 10 4 15 . Storage 8 | 1 2 . . . 2 . 1 . . 2 . Processor 13 | . . . 2 1 2 . . 3 2 3 . Hackware 9 | . . . 1 . 2 1 2 3 . . . Protection 27 | . . . . . 1 . . 8 4 14 . Artifact . | . . . . . . . . . . . . Weapon 145 | 1 6 . 17 13 12 33 7 24 10 22 . Energy Gun 53 | . 2 . 5 . 8 17 . 6 5 10 . Energy Cannon 16 | . . . . . 3 . . 2 . 11 . Ballistic Gun 44 | 1 4 . 12 10 . 1 6 10 . . . Ballistic Cannon 4 | . . . . . . . 1 2 . 1 . Launcher . | . . . . . . . . . . . . Special Weapon 8 | . . . . 3 . . . . 5 . . Impact Weapon 3 | . . . . . . 3 . . . . . Slashing Weapon 3 | . . . . . . . . 3 . . . Piercing Weapon 12 | . . . . . . 12 . . . . . Special Melee Weapon 2 | . . . . . 1 . . 1 . . . Unidentified Prototypes 7 | . . 1 . 1 1 . . 2 . 2 . Parts Lost 31 | . . . 1 . 3 1 1 21 . 2 2 Power 5 | . . . 1 . 2 . . 2 . . . Propulsion 9 | . . . . . . . . 8 . . 1 Utility 14 | . . . . . 1 1 1 8 . 2 1 Weapon 3 | . . . . . . . . 3 . . . Highest Loss Streak 9 | . . . 1 . 1 1 1 9 . 1 2 To Critical Strikes . | . . . . . . . . . . . . Average Slot Usage (%) 92 | . 91 100 99 99 99 100 99 92 67 81 84 Engine 7 | . 14 14 10 11 9 9 9 5 7 . . Reactor 1 | . . . . . . . . . . 6 7 Treads 24 | . 17 28 32 33 34 22 36 19 12 15 15 Leg 1 | . 10 . . . . . . 2 4 . . Wheel 2 | . . . . . 1 13 . 3 . . . Device 10 | . 7 14 10 11 9 17 10 3 1 15 15 Storage 9 | . 14 14 11 11 9 9 9 7 7 7 7 Processor 8 | . . . 10 11 9 9 9 9 1 13 15 Hackware 3 | . . . . . 7 . 7 13 6 . . Protection 2 | . . . . . . . . 9 8 5 7 Energy Gun 7 | . 8 28 4 . 14 14 1 2 8 4 15 Energy Cannon 2 | . . . . . 1 . . . . 9 . Ballistic Gun 7 | . 17 . 17 21 1 2 16 8 . . . Naked Turns . | . . . . . . . . . . . . Heaviest Build 143 | 12 28 28 37 40 97 103 105 125 143 143 117 Greatest Support 140 | 20 40 40 60 60 99 104 104 104 140 140 140 Greatest Overweight (x) 10 | . . . . . 8 5 1 10 1 1 . Average Overweight (x) . | . . . . . . 2 . 1 . . . Largest Inventory Capacity 25 | 8 15 15 15 15 25 25 25 25 25 25 25 Average Capacity 20 | 6 12 15 15 15 16 25 25 25 25 25 25 Most Carried 25 | 3 14 15 15 15 25 25 25 25 25 25 25 Average Carried 19 | 2 10 14 14 14 15 24 24 24 24 24 24 Final Capacity 25 | 8 15 15 15 15 25 25 25 25 25 25 25 Final Carried 25 | 3 14 15 15 15 25 25 25 25 24 25 23 Class Distribution -------------------- 46% | Bothacker-Mutant 32% | Mutant 18% | Scavenger-Mutant Dominant Class ---------------- Mutant | -10/Materials Mutant | -10/Mines Scavenger-Mutant | -9/Materials Mutant | -9/Storage Scavenger-Mutant | -8/Materials Mutant | -8/Garrison Bothacker-Mutant | -8/Materials Bothacker-Mutant | -7/Factory Bothacker-Mutant | -7/Waste Bothacker-Mutant | -7/Factory Bothacker-Mutant | -7/Lower Caves Resources | -11 -10 -10 -9 -9 -8 -8 -8 -7 -7 -7 -7 ----------- Run | Yrd Mat Min Mat Sto Mat Gar Mat Fac Was Fac Low Matter Collected 6900 | 157 470 50 846 628 637 480 882 1484 372 894 . Remotely . | . . . . . . . . . . . . Salvage Created 13579 | . 429 192 1314 910 1862 776 1569 1985 1767 2554 221 Parts 665 | . 46 14 84 55 94 45 103 87 34 98 5 Haulers Intercepted 30 | . 2 . 5 5 6 . 6 2 . 4 . Recyclers Shooed 2 | . . . . . 1 . 1 . . . . Parts Field Recycled . | . . . . . . . . . . . . Retrieved Matter . | . . . . . . . . . . . . Parts Self-Destructed 3 | . . . . . . . . . . . 3 Prevented 2 | . . . . . . . . . . . 2 Kills | -11 -10 -10 -9 -9 -8 -8 -8 -7 -7 -7 -7 ------- Run | Yrd Mat Min Mat Sto Mat Gar Mat Fac Was Fac Low Combat Hostiles Destroyed 235 | . 12 8 31 15 32 27 25 34 6 42 3 Melee 4 | . . . . . . . . 4 . . . Guns 180 | . 12 8 31 15 28 27 25 21 6 5 2 Cannons 46 | . . . . . 3 . . 9 . 34 . Classes Destroyed 18 | . 6 . 3 . 2 3 2 1 1 . . Worker 5 | . 1 . . . . . 2 2 . . . Builder 6 | . . . 1 . 2 . 2 1 . . . Tunneler 1 | . . . . . 1 . . . . . . Hauler 30 | . 2 . 5 5 6 . 6 2 . 4 . Recycler 4 | . . . . . . . 1 3 . . . Mechanic 1 | . . . . . 1 . . . . . . Operator 8 | . 1 . 2 1 2 . 1 . . 1 . Watcher 20 | . 3 . 2 2 5 . 3 . . 5 . Swarmer 58 | . 9 6 9 7 3 12 6 2 . 4 . Grunt 81 | . 3 2 11 1 21 6 5 12 . 19 1 Brawler 10 | . . . . . . 1 2 4 . 2 1 Duelist 8 | . . . 1 . 1 . 1 3 . 2 . Protector 2 | . . . . . . . 1 1 . . . Sentry 46 | . . . 10 7 7 3 8 3 . 7 1 Specialist 2 | . . . . . . 1 1 . . . . Hunter 9 | . . . . . . 4 1 2 . 2 . Programmer 13 | . . . . . . . . 7 . 6 . Compactor 6 | . . . . . . . . . 6 . . Best Kill Streak 11 | . 4 3 5 7 9 6 11 4 1 4 3 Combat Bots Only 8 | . 4 3 5 7 6 6 8 4 1 4 3 Max Kills in Single Turn 2 | . 1 1 2 2 2 2 2 1 1 2 2 Gunslinging 1 | . . . 1 1 1 1 1 . . . 1 Exploded . | . . . . . . . . . . . . Melee 1 | . . . . . . . . 1 . . . Uniques/NPCs Destroyed . | . . . . . . . . . . . . Combat | -11 -10 -10 -9 -9 -8 -8 -8 -7 -7 -7 -7 -------- Run | Yrd Mat Min Mat Sto Mat Gar Mat Fac Was Fac Low Hostile Shots Fired 1262 | . 49 26 107 63 131 102 131 364 . 271 18 Missed 352 | . 14 8 26 20 36 29 47 110 . 60 2 Damage Taken 10387 | . 316 175 803 362 1480 606 953 3530 . 1750 412 Core 1282 | . 48 54 73 70 201 50 81 559 . 99 47 Absorbed by Shields 2176 | . . . 261 144 49 284 344 397 . 647 50 Reduced by Siege Mode 237 | . . . . . . . . . . 196 41 Redirected to Shielding 73 | . . . . . . . . 73 . . . Ignored by Resistances 307 | . . . . . . . . 68 . 239 . Regen/Repaired (Parts) 364 | . . . 50 . 67 . . . . 247 . Core Remaining (%) 65 | 100 . 59 . 64 . . 39 . . . . Volleys Fired 994 | . 73 17 103 63 125 45 101 115 221 123 8 Largest 2 | . 2 2 2 2 2 2 2 2 2 2 2 Hottest 160 | . 70 100 130 46 160 160 103 136 108 160 110 Shots Fired 1711 | . 127 34 203 126 246 86 199 208 225 243 14 Gun 1419 | . 127 34 203 126 208 86 197 178 215 31 14 Cannon 282 | . . . . . 38 . 2 30 . 212 . Launcher . | . . . . . . . . . . . . Special 10 | . . . . . . . . . 10 . . Kinetic 754 | . 111 . 147 126 39 . 188 143 . . . Thermal 917 | . 16 34 56 . 207 86 11 65 215 227 . Explosive . | . . . . . . . . . . . . Electromagnetic 30 | . . . . . . . . . . 16 14 Robot Hit Streak 30 | . 18 6 14 17 30 12 21 18 30 21 27 Robot Miss Streak 11 | . 4 2 7 2 5 4 3 11 2 2 . Penetration Max 1 | . . . . . . . 1 . . . . Secondary Targets 21 | . . 1 3 1 4 2 3 4 1 1 1 Max Gunslinging Chain 1 | . . 1 1 1 1 1 1 1 1 1 1 Shots Hit Robots 1345 | . 82 21 145 104 197 72 142 187 196 185 14 Core Hits 657 | . 25 11 106 40 122 54 69 117 29 80 4 Critical Kills 5 | . 1 . . 1 . . . 1 . 2 . Critical Parts Destroyed 7 | . . . . . . . 5 2 . . . Critical Strikes 38 | . 2 . . 1 . . 5 15 11 4 . Burn 18 | . 1 . . . . . . 4 11 2 . Meltdown 2 | . . . . . . . . . . 2 . Destroy 11 | . 1 . . 1 . . 5 4 . . . Sever 7 | . . . . . . . . 7 . . . Melee Attacks 64 | . . . . . . 30 . 34 . . . Impact 7 | . . . . . . 7 . . . . . Slashing 33 | . . . . . . . . 33 . . . Piercing 23 | . . . . . . 23 . . . . . Sneak Attacks 5 | . . . . . . . . 5 . . . Combat Hostiles . | . . . . . . . . . . . . Follow-up Attacks . | . . . . . . . . . . . . Damage Inflicted 27412 | . 985 261 2067 1572 4339 1523 2849 4693 3858 5025 240 Guns 20708 | . 985 261 2067 1572 3746 1523 2849 2941 3858 666 240 Cannons 5600 | . . . . . 593 . . 648 . 4359 . Explosions . | . . . . . . . . . . . . Melee 1104 | . . . . . . . . 1104 . . . Ramming . | . . . . . . . . . . . . Kinetic 9381 | . 827 . 1340 1572 461 . 2612 2569 . . . Thermal 16368 | . 158 261 727 . 3878 1523 237 1020 3858 4706 . Explosive . | . . . . . . . . . . . . Electromagnetic 559 | . . . . . . . . . . 319 240 Impact . | . . . . . . . . . . . . Slashing 1104 | . . . . . . . . 1104 . . . Piercing . | . . . . . . . . . . . . Highest Corruption 20 | . . . . . . . 4 12 20 20 . Average Corruption 9 | . . . . . . . 4 6 18 10 . Corruption Purged 22 | . . . . . . . . . . 22 . Corruption Blocked 8 | . . . . . . . . . 8 . . Effects 245 | . . . . . . . 6 70 64 105 . Message Errors 51 | . . . . . . . 2 13 13 23 . Matter Fused 64 | . . . . . . . 1 20 9 34 . Heat Flow Errors 34 | . . . . . . . 2 12 3 17 . Energy Discharges 26 | . . . . . . . 1 8 8 9 . Parts Rejected 10 | . . . . . . . . 1 8 1 . Parts Fused 3 | . . . . . . . . 1 1 1 . Data Loss (minor) 25 | . . . . . . . . 10 4 11 . Data Loss (major) 6 | . . . . . . . . . 3 3 . Misfires 7 | . . . . . . . . 3 2 2 . Alerts 5 | . . . . . . . . 2 2 1 . Misdirections 3 | . . . . . . . . . 3 . . Weapon Failures 11 | . . . . . . . . . 8 3 . Overload Shots 20 | . . . . . . . . 10 2 8 . Effects 2 | . . . . . . . . 1 . 1 . Heat Surge 2 | . . . . . . . . 1 . 1 . Overflow Damage 135 | . . . . . 10 . . 82 . 43 . Projectiles 65 | . . . . . 10 . . 12 . 43 . Explosions . | . . . . . . . . . . . . Melee 70 | . . . . . . . . 70 . . . Knockbacks 1 | . . . . . . . . 1 . . . Impact . | . . . . . . . . . . . . Kinetic 1 | . . . . . . . . 1 . . . Secondary . | . . . . . . . . . . . . Self-Inflicted Damage . | . . . . . . . . . . . . Shots . | . . . . . . . . . . . . Rammed . | . . . . . . . . . . . . Targets Rammed . | . . . . . . . . . . . . Kicked . | . . . . . . . . . . . . Crushed . | . . . . . . . . . . . . Highest Temperature 300 | . 69 66 256 . 300 181 199 251 226 265 . Average Temperature 55 | . 25 25 45 . 73 42 14 53 92 68 . Received Heat Transfer 2993 | . 42 42 317 84 705 195 268 784 . 526 30 Effects 5 | . . . . . 3 . . . . 2 . Energy Bleed 3 | . . . . . 1 . . . . 2 . Interference 2 | . . . . . 2 . . . . . . Siege Activations 29 | . . . . . . . . . . 28 1 Total Turns 323 | . . . . . . . . . . 304 19 Longest Duration 26 | . . . . . . . . . . 26 19 Robots Corrupted 2 | . . . . . . . . . . 1 1 Combat Hostiles 2 | . . . . . . . . . . 1 1 Parts Fried 1 | . . . . . . . . . . 1 . Impact Corruptions . | . . . . . . . . . . . . Robots Melted 5 | . . . . . 1 . . . . 4 . Combat Hostiles 3 | . . . . . 1 . . . . 2 . Parts Melted 60 | . 1 1 2 . 9 8 2 7 . 30 . Heat Transferred 34143 | . 555 777 1054 . 8428 3424 550 2243 8140 8972 . Parts Sabotaged . | . . . . . . . . . . . . Parts Stolen . | . . . . . . . . . . . . Parts Stripped . | . . . . . . . . . . . . Power Chain Reactions . | . . . . . . . . . . . . Alert | -11 -10 -10 -9 -9 -8 -8 -8 -7 -7 -7 -7 ------- Run | Yrd Mat Min Mat Sto Mat Gar Mat Fac Was Fac Low Peak Influence 1806 | . 382 150 544 539 400 1806 1491 980 201 924 . Initial 880 | . . . . 166 164 169 880 678 184 . . Average 436 | . 115 59 313 295 174 977 1120 778 67 305 . Maximum Alert Level 5 | . 1 . 2 2 2 5 4 3 1 3 . Low Security (%) 40 | 100 77 100 24 37 60 3 . . 90 54 . Level 1 18 | . 22 . 55 29 39 8 . . 9 9 . Level 2 13 | . . . 19 32 . 11 . 27 . 19 . Level 3 19 | . . . . . . 37 52 72 . 16 . Level 4 6 | . . . . . . 29 47 . . . . Level 5 . | . . . . . . 8 . . . . . High Security . | . . . . . . . . . . . . Max Security . | . . . . . . . . . . . . Squads Dispatched 39 | . 2 . 3 3 3 . 10 9 . 9 . Investigation 7 | . 1 . . 1 1 . 2 1 . 1 . Extermination 9 | . . . . . . . . 5 . 4 . Reinforcement 12 | . 1 . 3 . 2 . 2 1 . 3 . Assault 4 | . . . . . . . 1 2 . 1 . Garrison 7 | . . . . 2 . . 5 . . . . Intercept . | . . . . . . . . . . . . Searches Triggered . | . . . . . . . . . . . . Construction Impeded . | . . . . . . . . . . . . Haulers Reinforced 2 | . . . . . . . . . . 2 . Active Scanning Responses . | . . . . . . . . . . . . Cargo Convoy Interrupts 1 | . . . . . . . . 1 . . . Stealth | -11 -10 -10 -9 -9 -8 -8 -8 -7 -7 -7 -7 --------- Run | Yrd Mat Min Mat Sto Mat Gar Mat Fac Was Fac Low Distress Signals 17 | . 3 . 6 3 1 . 2 1 . 1 . Communications Jammed . | . . . . . . . . . . . . Distress Signals . | . . . . . . . . . . . . Times Spotted 358 | . 29 10 49 32 52 30 47 45 5 52 7 Peak Tracking Total 7 | . 5 3 7 6 6 6 5 6 2 4 7 Tactical Retreats 24 | . 5 1 2 1 7 1 2 2 . 3 . Traps | -11 -10 -10 -9 -9 -8 -8 -8 -7 -7 -7 -7 ------- Run | Yrd Mat Min Mat Sto Mat Gar Mat Fac Was Fac Low Traps Triggered 24 | . 1 . 2 1 3 8 1 5 . 3 . Indirectly . | . . . . . . . . . . . . Trap Hack Attempts 5 | . . . . . 5 . . . . . . Triggered . | . . . . . . . . . . . . Disarmed 1 | . . . . . 1 . . . . . . Reprogrammed . | . . . . . . . . . . . . Reused . | . . . . . . . . . . . . Traps Extracted . | . . . . . . . . . . . . Installed . | . . . . . . . . . . . . Triggered 2 | . . . . . . . . 2 . . . Machines | -11 -10 -10 -9 -9 -8 -8 -8 -7 -7 -7 -7 ---------- Run | Yrd Mat Min Mat Sto Mat Gar Mat Fac Was Fac Low Machines Disabled 10 | . . . 1 1 1 5 1 . . 1 . Max in Single Turn 1 | . . . 1 1 1 1 1 . . 1 . Garrison Access 6 | . . . . 1 . . . 2 . 3 . Garrison Relay 5 | . . . . . . 5 . . . . . Machines Repaired . | . . . . . . . . . . . . Machines Dismantled 3 | . . . . 3 . . . . . . . Machines Sabotaged . | . . . . . . . . . . . . Overloaded Fab Kills . | . . . . . . . . . . . . Hacking | -11 -10 -10 -9 -9 -8 -8 -8 -7 -7 -7 -7 --------- Run | Yrd Mat Min Mat Sto Mat Gar Mat Fac Was Fac Low Machines Accessed 93 | . 8 1 10 16 10 3 7 14 . 24 . Terminals 60 | . 6 . 8 13 7 3 5 6 . 12 . Fabricators 5 | . . . . . . . . 2 . 3 . Repair Stations 6 | . . . 1 . 1 . . 1 . 3 . Recycling Units 12 | . 2 . 1 2 1 . 2 2 . 2 . Scanalyzers 2 | . . . . . . . . 1 . 1 . Garrison Access 7 | . . . . 1 1 . . 2 . 3 . Total Hacks 252 | . 29 1 33 41 38 7 20 33 . 50 . Successful 110 | . 10 1 16 16 19 3 9 18 . 18 . Failed 140 | . 19 . 17 25 18 4 11 14 . 32 . Catastrophic 34 | . 4 . 2 3 4 4 . 6 . 11 . Database Lockouts 2 | . . . . . 1 . . 1 . . . Manual 85 | . 17 . 13 13 15 2 7 10 . 8 . Terminals 176 | . 22 . 26 35 29 7 14 15 . 28 . Fabricators 9 | . . . . . . . . 5 . 4 . Repair Stations 20 | . . . 5 . 4 . . 3 . 8 . Recycling Units 27 | . 7 . 2 4 2 . 6 2 . 4 . Scanalyzers 7 | . . . . . . . . 5 . 2 . Garrison Access 12 | . . . . 2 3 . . 3 . 4 . Terminal Hacks 66 | . 8 1 12 12 14 3 5 5 . 6 . Prototype ID Bank 18 | . 3 . 3 4 3 . 2 1 . 2 . Open Door 5 | . . 1 . 3 . 1 . . . . . Branch Access Points 1 | . . . 1 . . . . . . . . Emergency Access Points 3 | . . . 1 . 1 1 . . . . . Terminal Index 5 | . 1 . . 1 1 . . 1 . 1 . Alert Level 3 | . . . . 1 1 . . . . 1 . Unreport Threat 12 | . 1 . 1 2 3 . 2 2 . 1 . Locate Traps 11 | . 2 . 3 1 2 . 1 1 . 1 . Hauler Manifests 3 | . . . 2 . 1 . . . . . . Registered Components 3 | . 1 . 1 . 1 . . . . . . Registered Prototypes 1 | . . . . . 1 . . . . . . Garrison Registry 1 | . . . . . . 1 . . . . . Fabricator Hacks 3 | . . . . . . . . 2 . 1 . Network Status 1 | . . . . . . . . . . 1 . Load Schematic 1 | . . . . . . . . 1 . . . Build 1 | . . . . . . . . 1 . . . Repair Station Hacks 11 | . . . 4 . 2 . . 1 . 4 . Scan Component 6 | . . . 2 . 1 . . 1 . 2 . Repair 5 | . . . 2 . 1 . . . . 2 . Recycling Unit Hacks 8 | . 1 . . 2 1 . 2 1 . 1 . Retrieve Components 8 | . 1 . . 2 1 . 2 1 . 1 . Scanalyzer 7 | . . . . . . . . 5 . 2 . Insert Component 3 | . . . . . . . . 2 . 1 . Analyze 4 | . . . . . . . . 3 . 1 . Garrison Access Hacks 9 | . . . . 1 1 . . 3 . 4 . Unlock Access 1 | . . . . . 1 . . . . . . Seal Access 6 | . . . . 1 . . . 2 . 3 . Coupler Status 2 | . . . . . . . . 1 . 1 . Unauthorized Hacks 6 | . 1 . . 1 1 . 2 1 . . . Terminals 1 | . . . . . . . . 1 . . . Operators 1 | . . . . . . . . 1 . . . Fabricators . | . . . . . . . . . . . . Repair Stations . | . . . . . . . . . . . . Recycling Units 5 | . 1 . . 1 1 . 2 . . . . Tunnel 5 | . 1 . . 1 1 . 2 . . . . Scanalyzers . | . . . . . . . . . . . . Garrison Access . | . . . . . . . . . . . . Data Cores Recovered 2 | . 1 . . 1 . . . . . . . Used . | . . . . . . . . . . . . Hacking Detections 73 | . 7 . 10 11 8 3 5 11 . 18 . Full Trace Events 4 | . . . 2 1 . . . 1 . . . Feedback Events . | . . . . . . . . . . . . Feedback Blocked . | . . . . . . . . . . . . Robot Schematics Acquired . | . . . . . . . . . . . . Robots Built . | . . . . . . . . . . . . Authchips . | . . . . . . . . . . . . Time . | . . . . . . . . . . . . Total Robot Build Rating . | . . . . . . . . . . . . Part Schematics Acquired 3 | . . . . . . . . 2 . 1 . Parts Built 2 | . . . . . . . . 2 . . . Authchips . | . . . . . . . . . . . . Time 106 | . . . . . . . . 106 . . . Total Part Build Rating 12 | . . . . . . . . 12 . . . Parts Repaired 5 | . . . 2 . 1 . . . . 2 . Time 222 | . . . 83 . 51 . . . . 88 . Parts Recycled . | . . . . . . . . . . . . Recycled Matter . | . . . . . . . . . . . . Retrieved Matter . | . . . . . . . . . . . . Retrieved Components 49 | . 7 . . 10 . . 13 10 . 9 . Parts Scanalyzed 3 | . . . . . . . . 2 . 1 . Part Schematics Acquired 3 | . . . . . . . . 2 . 1 . Parts Damaged 1 | . . . . . . . . 1 . . . Bothacking | -11 -10 -10 -9 -9 -8 -8 -8 -7 -7 -7 -7 ------------ Run | Yrd Mat Min Mat Sto Mat Gar Mat Fac Was Fac Low Used RIF Installer 1 | . . . . . . 1 . . . . . Robots Hacked 7 | . . . . . . . . 1 6 . . Non-combat 1 | . . . . . . . . 1 . . . Combat 6 | . . . . . . . . . 6 . . Robot Hacks Applied 7 | . . . . . . . . 1 6 . . find_chute 1 | . . . . . . . . 1 . . . ignore_targets 6 | . . . . . . . . . 6 . . Relay Couplers Released 20 | . . . . . . 20 . . . . . Machine Destruction 20 | . . . . . . 20 . . . . . Attached 2 | . . . . . . . . 2 . . . Fabnet Peak Effective % . | . . . . . . . . . . . . Robots Rewired 6 | . . . . . . 6 . . . . . Allies Hacked . | . . . . . . . . . . . . Hacks Repelled . | . . . . . . . . . . . . Allies | -11 -10 -10 -9 -9 -8 -8 -8 -7 -7 -7 -7 -------- Run | Yrd Mat Min Mat Sto Mat Gar Mat Fac Was Fac Low Total Allies 16 | . . . . 10 . 6 . . . . . Largest Group 10 | . . . . 10 . 5 6 . . . . Highest-Rated Group 124 | . . . . 88 . 108 124 . . . . Highest-Rated Ally 31 | . . . . 16 . 31 31 . . . . Total Orders 8 | . . . . 2 . . . 6 . . . EXPLORE 4 | . . . . 2 . . . 2 . . . RETURN 4 | . . . . . . . . 4 . . . Ally Attacks 171 | . . . . 70 . 4 70 27 . . . Total Damage 2346 | . . . . 633 . 177 1412 124 . . . Kills 33 | . . . . 13 . 3 15 2 . . . Allies Corrupted 1 | . . . . . . . . 1 . . . Allies Melted . | . . . . . . . . . . . . Intel | -11 -10 -10 -9 -9 -8 -8 -8 -7 -7 -7 -7 ------- Run | Yrd Mat Min Mat Sto Mat Gar Mat Fac Was Fac Low Robot Analysis Total . | . . . . . . . . . . . . Derelict Logs Recovered 2 | . . 2 . . . . . . . . . Drone Launches 22 | . . . . 16 . . . 6 . . . Drone Recoveries 6 | . . . . 2 . . . 4 . . . Exploration | -11 -10 -10 -9 -9 -8 -8 -8 -7 -7 -7 -7 ------------- Run | Yrd Mat Min Mat Sto Mat Gar Mat Fac Was Fac Low Turns Passed 23195 | 51 1725 1070 2730 1988 2911 2468 1587 2825 1124 4691 25 Spaces Moved 11168 | 39 1004 603 1331 942 1380 1263 781 1164 364 2296 1 Core 10 | 10 . . . . . . . . . . . Treads 9179 | . 618 603 1331 942 1236 375 781 683 313 2296 1 Legs 528 | 29 386 . . . . . . 62 51 . . Wheels 1451 | . . . . . 144 888 . 419 . . . Hover . | . . . . . . . . . . . . Flight . | . . . . . . . . . . . . Fastest Speed 50 | 50 120 160 160 160 150 150 160 145 160 160 160 Average Speed 162 | 102 144 160 160 160 160 153 160 189 171 166 160 Slowest Speed 560 | 120 160 160 160 160 240 560 240 480 240 240 160 Overloaded Moves . | . . . . . . . . . . . . Propulsion Burnouts . | . . . . . . . . . . . . Robots Hopped . | . . . . . . . . . . . . Cave-ins Triggered . | . . . . . . . . . . . . Exploration Rate (%) 70 | 3 98 98 98 96 88 96 75 38 98 58 1 Regions Visited 11 Branch Regions 3 Pre-discovered Areas 6 | . 1 1 . 1 1 . 2 . . . . Known Exits Taken 3 | . . . 1 1 1 . . . . . . Unknown Exits Taken 5 | 1 1 1 . . . . 1 . . 1 . Scrap Searched 1 | . . 1 . . . . . . . . . Spaces Dug 6 | . . . . . . . 4 . 2 . . Terrain Destroyed 17 | . . . . . . . 7 7 2 1 . Melee . | . . . . . . . . . . . . Projectile 17 | . . . . . . . 7 7 2 1 . AOE . | . . . . . . . . . . . . Terrain Rammed . | . . . . . . . . . . . . Walls Destroyed . | . . . . . . . . . . . . Machines Disabled . | . . . . . . . . . . . . Actions | -11 -10 -10 -9 -9 -8 -8 -8 -7 -7 -7 -7 --------- Run | Yrd Mat Min Mat Sto Mat Gar Mat Fac Was Fac Low Total 14365 | 47 1160 675 1736 1264 1804 1636 950 1521 642 2919 11 Wait 1177 | 1 43 45 202 175 187 75 30 47 1 370 1 Move 11156 | 38 1003 602 1330 941 1379 1260 780 1164 363 2295 1 Hop . | . . . . . . . . . . . . Pick Up 144 | 3 13 2 23 6 18 23 6 23 10 17 . Fast Attach 120 | 5 7 1 10 9 13 1 3 32 12 27 . Attach 56 | . 2 1 4 . 7 1 1 25 3 11 1 Detach 50 | . 5 2 2 2 7 . 1 16 2 13 . Swap 196 | . 4 2 27 16 33 46 12 18 10 28 . Drop 228 | . 10 3 35 25 30 23 16 31 20 35 . Fire 994 | . 73 17 103 63 125 45 101 115 221 123 8 Melee 64 | . . . . . . 30 . 34 . . . Ram . | . . . . . . . . . . . . Kick . | . . . . . . . . . . . . Crush . | . . . . . . . . . . . . Escape Stasis 80 | . . . . . . 64 . 16 . . . Rewire 68 | . . . . . . 68 . . . . . Trap 5 | . . . . . 5 . . . . . . Miscellaneous 27 | . . . . 27 . . . . . . . Route ------- -11/Scrapyard -10/Materials (discovered 5 exits: *Mat x3 / *Min x2) -10/Mines (discovered 2 exits: *Mat x2) -9/Materials (discovered 6 exits: *Mat x3 / *Min x2 / *Sto) -9/Storage -8/Materials (discovered 3 exits: *Fac x2 / Gar) -8/Garrison (discovered 4 exits: *Fac x3 / *Mat) -8/Materials -7/Factory -7/Waste -7/Factory (discovered 3 exits: *Fac x2 / [*Low]) -7/Lower Caves History --------- Turn | Location | Event 9 | -11/Scrapyard | Discovered new exit (range 14) 52 | -11/Scrapyard | Entered Materials 312 | -10/Materials | Build established: Mutant 431 | -10/Materials | Discovered new exit (range 6) 614 | -10/Materials | Discovered new exit (range 12) 872 | -10/Materials | Discovered new exit (range 15) 1166 | -10/Materials | Discovered new exit (range 6) 1270 | -10/Materials | Discovered new exit (range 16) 1777 | -10/Materials | Entered Mines 1808 | -10/Mines | Learned location of Zion (-6) 1859 | -10/Mines | Learned location of 1 exit from Materials 1904 | -10/Mines | Discovered new exit (range 8) 1986 | -10/Mines | Found the Drone Emporium 1999 | -10/Mines | Found Prototype Device 1999 | -10/Mines | Identified Thief Drone Bay 2254 | -10/Mines | Discovered new exit (range 6) 2775 | -10/Mines | A weapon hastily lodged in a ceiling crevice suddenly fell to the ground 2800 | -10/Mines | Received a Rocket Launcher from a helpful Derelict 2847 | -10/Mines | Entered Materials 2847 | -9/Materials | Evolved 2 slots: Propulsion x1, Utility x1 2848 | -9/Materials | Identified exit to Materials 2946 | -9/Materials | Identified exit to Mines 2946 | -9/Materials | Identified exit to Storage 3212 | -9/Materials | Build established: Scavenger-Mutant 4132 | -9/Materials | Discovered exit to Materials (range 16) 4801 | -9/Materials | Discovered exit to Materials (range 16) 5165 | -9/Materials | Build established: Mutant 5389 | -9/Materials | Repaired Shield Generator 5442 | -9/Materials | Repaired Cld. Ion Engine 5577 | -9/Materials | Entered Storage 5957 | -9/Storage | Assisted by bots powering up and referring to "LRC-V3" 6252 | -9/Storage | Build established: Commander-Mutant 6497 | -9/Storage | Destroyed 7 combat bots 6542 | -9/Storage | Garrison activated, responded to threat 6669 | -9/Storage | Discovered exit to Materials (range 15) 6723 | -9/Storage | Build established: Mutant 7000 | -9/Storage | Garrison activated, responded to threat 7565 | -9/Storage | Entered Materials 7565 | -8/Materials | Evolved 2 slots: Propulsion x1, Utility x1 8100 | -8/Materials | Build established: Scavenger-Mutant 8767 | -8/Materials | Central database locked down 8961 | -8/Materials | Repaired Cld. Ion Engine 9060 | -8/Materials | Discovered new exit (range 15) 9208 | -8/Materials | Identified exit to Garrison 9724 | -8/Materials | Discovered new exit (range 16) 10476 | -8/Materials | Entered Garrison 10554 | -8/Garrison | Triggered checkpoint 10645 | -8/Garrison | Garrison Relay disabled 10879 | -8/Garrison | Build established: Mutant 11166 | -8/Garrison | Triggered checkpoint 11485 | -8/Garrison | Discovered new exit (range 10) 11650 | -8/Garrison | Triggered checkpoint 11696 | -8/Garrison | Garrison Relay disabled 11884 | -8/Garrison | Triggered checkpoint 11919 | -8/Garrison | Discovered new exit (range 10) 12005 | -8/Garrison | Garrison Relay disabled 12084 | -8/Garrison | Triggered checkpoint 12157 | -8/Garrison | Discovered new exit (range 5) 12186 | -8/Garrison | Triggered checkpoint 12208 | -8/Garrison | Discovered new exit (range 50) 12208 | -8/Garrison | Discovered new exit (range 23) 12208 | -8/Garrison | Discovered new exit (range 28) 12208 | -8/Garrison | Discovered new exit (range 33) 12246 | -8/Garrison | Garrison Relay disabled 12259 | -8/Garrison | Garrison Relay disabled 12293 | -8/Garrison | Installed Relay Interface Framework 12643 | -8/Garrison | Build established: Bothacker-Mutant 12884 | -8/Garrison | Triggered checkpoint 12944 | -8/Garrison | Entered Materials 12944 | -8/Materials | Accompanied by 6 allies 13211 | -8/Materials | Garrison activated, responded to threat 13562 | -8/Materials | Discovered new exit (range 15) 13899 | -8/Materials | Core integrity fell below 50% 14062 | -8/Materials | Garrison activated, responded to threat 14117 | -8/Materials | Destroyed 8 combat bots 14144 | -8/Materials | First assault squad dispatched 14223 | -8/Materials | Garrison activated, responded to threat 14531 | -8/Materials | Entered Factory 14531 | -7/Factory | Evolved 2 slots: Utility x2 14749 | -7/Factory | Discovered new exit (range 12) 14764 | -7/Factory | Lost 5 parts (1p1n2u1w) 15331 | -7/Factory | First assault squad dispatched 15887 | -7/Factory | Cargo convoy interrupted 16545 | -7/Factory | Core integrity fell below 50% 16929 | -7/Factory | Fabricated Arm. Medium Treads? 17003 | -7/Factory | System corruption reached 10% 17054 | -7/Factory | Lost 9 parts (1p3n4u1w) 17325 | -7/Factory | Central database locked down 17356 | -7/Factory | Sucked down chute 17356 | -7/Factory | Entered Waste 17371 | -7/Waste | EMP discharged 17426 | -7/Waste | Spotted C-40 Crusher 17431 | -7/Waste | Spotted C-40 Crusher 17450 | -7/Waste | Spotted C-40 Crusher 17471 | -7/Waste | EMP discharged 17489 | -7/Waste | Spotted C-40 Crusher 17491 | -7/Waste | Destroyed C-40 Crusher 17542 | -7/Waste | Found Damper Plating 17571 | -7/Waste | EMP discharged 17614 | -7/Waste | Spotted C-40 Crusher 17671 | -7/Waste | EMP discharged 17764 | -7/Waste | Destroyed C-40 Crusher 17771 | -7/Waste | EMP discharged 17776 | -7/Waste | Spotted C-40 Crusher 17871 | -7/Waste | EMP discharged 17891 | -7/Waste | Destroyed C-40 Crusher 17893 | -7/Waste | Found Damper Plating 17899 | -7/Waste | Found Damper Plating 17971 | -7/Waste | EMP discharged 18071 | -7/Waste | EMP discharged 18124 | -7/Waste | Destroyed C-40 Crusher 18145 | -7/Waste | Destroyed C-40 Crusher 18171 | -7/Waste | EMP discharged 18191 | -7/Waste | Destroyed C-40 Crusher 18271 | -7/Waste | EMP discharged 18272 | -7/Waste | Discovered new exit (range 11) 18371 | -7/Waste | EMP discharged 18471 | -7/Waste | EMP discharged 18480 | -7/Waste | Entered Factory 18949 | -7/Factory | Core integrity fell below 20% 19734 | -7/Factory | Repaired Hyb. Deuterium Engine? 20523 | -7/Factory | Repaired Med. Reactive Plating? 21347 | -7/Factory | Discovered new exit (range 15) 21380 | -7/Factory | Identified exit to Factory 22047 | -7/Factory | Discovered exit to Factory (range 13) 22480 | -7/Factory | First assault squad dispatched 23081 | -7/Factory | Discovered new exit (range 7) 23171 | -7/Factory | Entered Lower Caves 23176 | -7/Lower Caves | Attracted the attention of an 0b10 outpost 23196 | -7/Lower Caves | Destroyed by L-41 Fighter with Axe Last Messages --------------- Purged threat record, alert level lowered. 23161_ Connecting with Recycling Unit... LOCATION=UNKNOWN GOAL=ESCAPE 23176_ Y-64 Sentinel: "DETECTED UNIDENTIFIED DERELICT." 23176_ Penetrated by Slug. 23178_ Activated siege mode. 23179_ Slug penetrates Wall. 23180_ Y-64 Sentinel: "REQUESTING BACKUP." 23181_ Y-64 Sentinel system terminally corrupted. 23185_ Corrupted Imp. Treads self-destruct mechanism malfunctions. 23186_ B-48 Gladiator destroyed. 23186_ Switching to secondary target: G-47 Trooper. 23186_ G-47 Trooper destroyed. 23190_ Corrupted Lgt. Treads fries itself beyond repair. 23190_ Imp. Shield Generator destroyed. 23192_ Corrupted Neutrino Core self-destruct mechanism malfunctions. 23192_ Hvy. Treads destroyed. 23194_ Lgt. Nuclear Core fries itself beyond repair. 23195_ Aluminum Leg fries itself beyond repair. Map ----- +----------------------------------------------------+ | ????????????????????????????????????????????????? | | ????????????????????????????????????????????????? | | ????????????????????????????????????????????????? | | ????????????????????????????????????????????????? | | ????????????????????????????????????????????????? | | ????????????????????????????????????????????????? | | ????????????????????????????????????????????????? | | ????????????????????????????????????????????????? | | ????????????????????????????????????????????????? | | ????????????????????????????????????????????????? | | ????????????????????????????????????????????????? | | ????????????????????????????????????????????????? | | ????????????????????????????????????????????????? | | ????????????????????????????????????????????????? | | ????????????????????????????????????????????????? | | ????????????????????????????????????????????????? | | ????????????????????????????????????????????????? | | ????????????????????????????????????????????????? | | ????????????????????????????????????????????????? | | ????????????????????????????????????????????????? | | ???????????????????#????????????????????????????? | | ???????????????????# ###????????????????????????? | | ???????????????????#$# ????????????????????????? | | ???????????????????# ????????????????????????? | | ???????????????????# ##### #?????????????????? | | ???????????????????# *l@ #?????????????????? | | ???????????????????### sbl ####?????????????????? | | ???????????????? % ##????????????????????? | | ???????????????######## ##?????????????????????? | | ??????????????????????## #??????????????????????? | | ???????????????????????###??????????????????????? | | ????????????????????????????????????????????????? | | ????????????????????????????????????????????????? | | ????????????????????????????????????????????????? | | ????????????????????????????????????????????????? | | ????????????????????????????????????????????????? | | ????????????????????????????????????????????????? | | ????????????????????????????????????????????????? | | ????????????????????????????????????????????????? | | ????????????????????????????????????????????????? | | ????????????????????????????????????????????????? | | ????????????????????????????????????????????????? | | ????????????????????????????????????????????????? | | ????????????????????????????????????????????????? | | ????????????????????????????????????????????????? | | ????????????????????????????????????????????????? | | | | | | | | | +----------------------------------------------------+ Best States ------------- Heat Dissipation 80 Energy Generation 23 Energy Capacity 800 Matter Stores 300 Matter Capacity 300 Sight Range 16 Terrain Scan Density 10 EM Shielding 3 Corruption Block 8 Armor Coverage 1600 Resistance: KI 30 Resistance: EM 90 Utility Shielding 66 Evasion (%) 55 Targeting Accuracy 8 Target Analysis 5 Core Analysis 6 Recoil Reduction 4 Salvage Targeting 2 Offensive Hacking 10 Defensive Hacking 10 Relay Coupler Types 1 Relay Coupler Value 28 Item Schematics ----------------- Arm. Medium Treads | -7/Factory | Scanalyzed Imp. Shield Generator | -7/Factory | Scanalyzed Hvy. Treads | -7/Factory | Scanalyzed Robot Schematics ------------------ None Fabricated ------------ Arm. Medium Treads | x2 | -7/Factory Alien Tech Used ----------------- None Achievements -------------- None Challenges ------------ None Game ------ Seed TitaniumContainmentShredder Manual? 0 Play Time 05:33:58 Cumulative 196.4 hours Start 2024.08.01 @ 06:31:41 End 2024.08.02 @ 19:17:18 Sessions 2 Manual Loads 0 Difficulty Rogue Special Mode None Game No. 61 Rogue 61 Adventurer 0 Explorer 0 Win Type - Total 1 Types 1/0/0/0/0/0/0/0/0 Lore% 59 Gallery% 67 Achievement% 51 Wizard Run 0 Options --------- Layout 0 ASCII 0 Keyboard 1 Movement Numpad Keybinds 0 Fullscreen 1 Font 18/X11Bold Map View 76x50 Zoom Use 0% Tactical HUD 1 Map Filters NONE Filters NONE Steam 1 RUN: daeded4a-114f-47b4-ae5b-2a762e8f2db2